fUST/lending_fUST_20250604
["ID","MTS","AMOUNT","RATE_DAILY","PERIOD"]
[364219099,1749043845952,-3145.9,0.00019178,2]
[364219101,1749043845962,-440.0,0.00019178,2]
[364219103,1749043845972,-440.0,0.00019178,2]
[364219105,1749043845981,-440.0,0.00019178,2]
[364219107,1749043845991,-440.0,0.00019178,2]
[364219109,1749043846000,-1294.34,0.00019178,2]
[364219111,1749043846009,-1679.19,0.00019178,2]
[364219113,1749043846018,-578.89,0.00019178,2]
[364219115,1749043846028,-602.97,0.00019178,2]
[364219117,1749043846038,-610.23,0.00019178,2]
[364219120,1749043846048,-440.0,0.00019178,2]
[364219122,1749043846058,-2149.19,0.00019178,2]
[364219123,1749043846067,-2673.82,0.00019178,2]
[364219125,1749043846077,-507.61,0.00019178,2]
[364219127,1749043846086,-440.0,0.00019178,2]
[364219129,1749043846095,-4302.01,0.00019178,2]
[364219131,1749043846105,-2742.71,0.00019178,2]
[364219133,1749043846114,-1046.53,0.00019178,2]
[364219135,1749043846123,-1234.55,0.00019178,2]
[364219137,1749043846133,-834.94,0.00019178,2]
[364219139,1749043846142,-686.23,0.00019178,2]
[364219141,1749043846152,-655.42,0.00019178,2]
[364219143,1749043846161,-2049.91,0.00019178,2]
[364219145,1749043846171,-440.0,0.00019178,2]
[364219147,1749043846180,-771.64,0.00019178,2]
[364219149,1749043846190,-2082.9,0.00019178,2]
[364219151,1749043846200,-229.071117,0.00019178,2]
[364219153,1749043846209,-151.0,0.000192,2]
[364219155,1749043846218,-100000.0,0.00019329,2]
[364219157,1749043846228,-4278.27575309,0.00019348,2]
[364219159,1749043846237,-1051.97,0.00019451,2]
[364219161,1749043846247,-2555.1,0.00019451,2]
[364219163,1749043846256,-721.25,0.00019451,2]
[364219165,1749043846265,-440.0,0.00019452,2]
[364219167,1749043846275,-440.0,0.00019452,2]
[364219169,1749043846284,-440.0,0.00019452,2]
[364219171,1749043846294,-440.0,0.00019452,2]
[364219173,1749043846304,-1294.34,0.00019452,2]
[364219175,1749043846313,-1679.19,0.00019452,2]
[364219177,1749043846323,-578.89,0.00019452,2]
[364219179,1749043846333,-602.97,0.00019452,2]
[364219181,1749043846342,-610.23,0.00019452,2]
[364219183,1749043846354,-232.53622594,0.00019452,2]
[364219184,1749043846364,-2149.19,0.00019452,2]
[364219185,1749043846373,-2673.82,0.00019452,2]
[364219186,1749043846383,-507.61,0.00019452,2]
[364219187,1749043846393,-440.0,0.00019452,2]
[364219188,1749043846403,-4302.01,0.00019452,2]
[364219189,1749043846416,-2742.71,0.00019452,2]
[364219190,1749043846426,-1046.53,0.00019452,2]
[364219191,1749043846435,-1234.55,0.00019452,2]
[364219192,1749043846446,-834.94,0.00019452,2]
[364219193,1749043846456,-686.23,0.00019452,2]
[364219194,1749043846466,-655.42,0.00019452,2]
[364219195,1749043846476,-2049.91,0.00019452,2]
[364219196,1749043846486,-440.0,0.00019452,2]
[364219197,1749043846498,-771.64,0.00019452,2]
[364219198,1749043846509,-2082.9,0.00019452,2]
[364219199,1749043846519,-4278.27575309,0.0001959,2]
[364219200,1749043846530,-587.0,0.00019631,2]
[364219201,1749043846540,-587.0,0.00019631,2]
[364219202,1749043846553,-202.39606943,0.00019662,2]
[364219203,1749043846564,-151.0,0.000197,2]
[364219204,1749043846575,-1051.97,0.00019725,2]
[364219205,1749043846586,-2555.1,0.00019725,2]
[364219206,1749043846596,-721.25,0.00019725,2]
[364219207,1749043846606,-440.0,0.00019726,2]
[364219208,1749043846616,-489.87,0.00019726,2]
[364219209,1749043846625,-440.0,0.00019726,2]
[364219210,1749043846635,-440.0,0.00019726,2]
[364219211,1749043846645,-1294.34,0.00019726,2]
[364219212,1749043846655,-1679.19,0.00019726,2]
[364219213,1749043846665,-578.89,0.00019726,2]
[364219214,1749043846675,-602.97,0.00019726,2]
[364219216,1749043846684,-610.23,0.00019726,2]
[364219217,1749043846693,-2149.19,0.00019726,2]
[364219219,1749043846703,-2673.82,0.00019726,2]
[364219221,1749043846712,-507.61,0.00019726,2]
[364219223,1749043846722,-440.0,0.00019726,2]
[364219225,1749043846731,-4302.01,0.00019726,2]
[364219227,1749043846740,-2742.71,0.00019726,2]
[364219229,1749043846750,-1046.53,0.00019726,2]
[364219231,1749043846760,-1234.55,0.00019726,2]
[364219233,1749043846770,-834.94,0.00019726,2]
[364219235,1749043846780,-686.23,0.00019726,2]
[364219237,1749043846789,-655.42,0.00019726,2]
[364219240,1749043846801,-2049.91,0.00019726,2]
[364219241,1749043846810,-440.0,0.00019726,2]
[364219244,1749043846820,-771.64,0.00019726,2]
[364219245,1749043846829,-2082.9,0.00019726,2]
[364219247,1749043846843,-208.0,0.00019726,3]
[364219250,1749043846852,-184.947,0.00019809,2]
[364219251,1749043846862,-320.0,0.00019827,2]
[364219253,1749043846871,-4278.27575309,0.00019831,2]
[364219256,1749043846880,-1142.99994159,0.000199,2]
[364219258,1749043846892,-1051.97,0.00019999,2]
[364219259,1749043846902,-2555.1,0.00019999,2]
[364219261,1749043846912,-721.25,0.00019999,2]
[364219263,1749043846921,-212.352444,0.0002,2]
[364219265,1749043846931,-212.352444,0.0002,2]
[364219267,1749043846940,-440.0,0.0002,2]
[364219269,1749043846949,-300.39179917,0.0002,2]
[364219271,1749043846958,-25200.0,0.0002,2]
[364219273,1749043846967,-440.0,0.0002,2]
[364219275,1749043846977,-440.0,0.0002,2]
[364219277,1749043846986,-1294.34,0.0002,2]
[364219279,1749043846995,-1679.19,0.0002,2]
[364219281,1749043847003,-578.89,0.0002,2]
[364219283,1749043847012,-602.97,0.0002,2]
[364219285,1749043847021,-610.23,0.0002,2]
[364219287,1749043847031,-2149.19,0.0002,2]
[364219289,1749043847040,-223.95390513,0.0002,2]
[364219291,1749043847049,-2673.82,0.0002,2]
[364219293,1749043847059,-507.61,0.0002,2]
[364219295,1749043847069,-440.0,0.0002,2]
[364219297,1749043847078,-3312.0,0.0002,2]
[364219299,1749043847088,-4302.01,0.0002,2]
[364219301,1749043847097,-2742.71,0.0002,2]
[364219303,1749043847107,-1046.53,0.0002,2]
[364219305,1749043847116,-1234.55,0.0002,2]
[364219307,1749043847125,-686.23,0.0002,2]
[364219309,1749043847135,-834.94,0.0002,2]
[364219311,1749043847144,-655.42,0.0002,2]
[364219313,1749043847154,-2049.91,0.0002,2]
[364219315,1749043847163,-440.0,0.0002,2]
[364219317,1749043847173,-771.64,0.0002,2]
[364219319,1749043847182,-2082.9,0.0002,2]
[364219321,1749043847191,-151.0,0.0002002,2]
[364219323,1749043847201,-151.0,0.0002002,2]
[364219325,1749043847211,-151.0,0.0002002,2]
[364219327,1749043847221,-151.0,0.0002002,2]
[364219329,1749043847230,-158.261927,0.0002002,2]
[364219331,1749043847239,-158.261927,0.0002002,2]
[364219333,1749043847248,-1500.0,0.00020068,2]
[364219335,1749043847258,-4278.27575309,0.00020072,2]
[364219337,1749043847269,-440.0,0.00020273,2]
[364219339,1749043847278,-440.0,0.00020273,2]
[364219341,1749043847287,-440.0,0.00020273,2]
[364219343,1749043847297,-1294.34,0.00020273,2]
[364219344,1749043847308,-1679.19,0.00020273,2]
[364219347,1749043847317,-1051.97,0.00020273,2]
[364219348,1749043847327,-578.89,0.00020273,2]
[364219351,1749043847336,-602.97,0.00020273,2]
[364219352,1749043847346,-610.23,0.00020273,2]
[364219354,1749043847355,-2555.1,0.00020273,2]
[364219357,1749043847365,-2149.19,0.00020273,2]
[364219359,1749043847375,-2673.82,0.00020273,2]
[364219360,1749043847384,-507.61,0.00020273,2]
[364219362,1749043847394,-440.0,0.00020273,2]
[364219364,1749043847404,-721.25,0.00020273,2]
[364219366,1749043847414,-4302.01,0.00020273,2]
[364219369,1749043847429,-2742.71,0.00020273,2]
[364219371,1749043847438,-1046.53,0.00020273,2]
[364219373,1749043847448,-1234.55,0.00020273,2]
[364219375,1749043847460,-686.23,0.00020273,2]
[364219377,1749043847471,-834.94,0.00020273,2]
[364219379,1749043847480,-655.42,0.00020273,2]
[364219381,1749043847490,-2049.91,0.00020273,2]
[364219383,1749043847501,-440.0,0.00020273,2]
[364219385,1749043847510,-771.64,0.00020273,2]
[364219387,1749043847520,-2082.9,0.00020273,2]
[364219389,1749043847530,-151.0,0.000203,4]
[364219391,1749043847541,-4278.27575309,0.00020314,3]
[364219392,1749043847552,-800.0,0.00020388,2]
[364219395,1749043847562,-500.0,0.00020395,2]
[364219396,1749043847573,-1631.60489494,0.000204,2]
[364219398,1749043847583,-440.0,0.00020547,2]
[364219401,1749043847593,-500.0,0.00020547,2]
[364219402,1749043847603,-440.0,0.00020547,2]
[364219404,1749043847612,-486.11950499,0.00020547,2]
[364219406,1749043847621,-1294.34,0.00020547,2]
[364219416,1749043847713,-1679.19,0.00020547,2]
[364219418,1749043847723,-1051.97,0.00020547,2]
[364219420,1749043847733,-578.89,0.00020547,2]
[364219422,1749043847742,-602.97,0.00020547,2]
[364219424,1749043847752,-610.23,0.00020547,2]
[364219426,1749043847761,-2555.1,0.00020547,2]
[364219428,1749043847770,-2149.19,0.00020547,2]
[364219430,1749043847779,-2673.82,0.00020547,2]
[364219432,1749043847789,-507.61,0.00020547,2]
[364219434,1749043847798,-440.0,0.00020547,2]
[364219436,1749043847808,-721.25,0.00020547,2]
[364219438,1749043847818,-4302.01,0.00020547,2]
[364219440,1749043847827,-2742.71,0.00020547,2]
[364219442,1749043847837,-1046.53,0.00020547,2]
[364219444,1749043847846,-1234.55,0.00020547,2]
[364219446,1749043847855,-686.23,0.00020547,2]
[364219448,1749043847864,-834.94,0.00020547,2]
[364219450,1749043847874,-655.42,0.00020547,2]
[364219452,1749043847883,-2049.91,0.00020547,2]
[364219454,1749043847893,-440.0,0.00020547,2]
[364219456,1749043847903,-771.64,0.00020547,2]
[364219458,1749043847912,-2082.9,0.00020547,2]
[364219460,1749043847922,-350.0,0.00020548,2]
[364219462,1749043847931,-4278.27575309,0.00020555,3]
[364219464,1749043847940,-354.56540062,0.00020558,2]
[364219466,1749043847950,-500.0,0.00020558,2]
[364219468,1749043847960,-500.0,0.00020558,2]
[364219469,1749043847969,-2410.0,0.000206,2]
[364219471,1749043847978,-949.12,0.000206,2]
[364219473,1749043847989,-53214.35,0.000206,2]
[364219475,1749043847998,-151.0,0.00020631,2]
[364219477,1749043848007,-151.0,0.00020631,2]
[364219480,1749043848017,-151.0,0.00020631,2]
[364219481,1749043848027,-151.0,0.00020658,2]
[364219484,1749043848036,-151.0,0.00020658,2]
[364219486,1749043848047,-248.08417531,0.00020686,2]
[364219487,1749043848058,-151.0,0.00020686,2]
[364219489,1749043848069,-151.0,0.00020713,2]
[364219491,1749043848082,-151.0,0.00020741,2]
[364219493,1749043848092,-167.47185108,0.00020768,2]
[364219495,1749043848103,-198.0,0.00020768,2]
[364219497,1749043848114,-219.74042264,0.00020768,2]
[364219499,1749043848124,-151.0,0.00020768,2]
[364219501,1749043848134,-152.5351697,0.00020768,2]
[364219504,1749043848144,-151.0,0.00020768,2]
[364219506,1749043848154,-159.41906259,0.00020768,2]
[364219507,1749043848164,-151.0,0.00020768,2]
[364219509,1749043848173,-151.0,0.00020768,2]
[364219512,1749043848184,-151.49464071,0.00020768,2]
[364219514,1749043848194,-151.0,0.00020768,2]
[364219516,1749043848205,-202.39606943,0.00020769,2]
[364219517,1749043848215,-151.0,0.00020795,2]
[364219519,1749043848225,-155.12556543,0.00020795,2]
[364219521,1749043848235,-151.0,0.00020795,2]
[364219523,1749043848246,-151.3680784,0.00020795,2]
[364219526,1749043848257,-4278.27575309,0.00020797,4]
[364219527,1749043848267,-151.0,0.000208,3]
[364219529,1749043848277,-250.0,0.00020819,2]
[364219531,1749043848287,-151.0,0.00020821,2]
[364219533,1749043848298,-212.352444,0.00020821,2]
[364219536,1749043848309,-212.352444,0.00020821,2]
[364219538,1749043848320,-440.0,0.00020821,2]
[364219539,1749043848330,-440.0,0.00020821,2]
[364219541,1749043848341,-1294.34,0.00020821,2]
[364219544,1749043848351,-1679.19,0.00020821,2]
[364219546,1749043848362,-1051.97,0.00020821,2]
[364219548,1749043848373,-578.89,0.00020821,2]
[364219550,1749043848383,-602.97,0.00020821,2]
[364219552,1749043848394,-610.23,0.00020821,2]
[364219554,1749043848404,-2555.1,0.00020821,2]
[364219556,1749043848414,-2149.19,0.00020821,2]
[364219557,1749043848425,-2673.82,0.00020821,2]
[364219559,1749043848435,-507.61,0.00020821,2]
[364219561,1749043848445,-440.0,0.00020821,2]
[364219563,1749043848456,-721.25,0.00020821,2]
[364219566,1749043848467,-4302.01,0.00020821,2]
[364219568,1749043848477,-2742.71,0.00020821,2]
[364219570,1749043848487,-1046.53,0.00020821,2]
[364219572,1749043848498,-1234.55,0.00020821,2]
[364219574,1749043848513,-686.23,0.00020821,2]
[364219576,1749043848524,-834.94,0.00020821,2]
[364219578,1749043848535,-655.42,0.00020821,2]
[364219580,1749043848545,-2049.91,0.00020821,2]
[364219582,1749043848558,-440.0,0.00020821,2]
[364219584,1749043848568,-771.64,0.00020821,2]
[364219587,1749043848578,-2082.9,0.00020821,2]
[364219589,1749043848596,-151.0,0.00020823,2]
[364219592,1749043848611,-198.0,0.00020823,2]
[364219594,1749043848624,-151.0,0.0002085,2]
[364219596,1749043848640,-151.0,0.00020878,2]
[364219599,1749043848654,-500.0,0.00020887,2]
[364219602,1749043848670,-500.0,0.00020887,2]
[364219604,1749043848685,-229.35237593,0.00020899,2]
[364219607,1749043848703,-500.0,0.000209,2]
[364219609,1749043848717,-600.0,0.000209,2]
[364219612,1749043848731,-500.0,0.000209,2]
[364219614,1749043848745,-500.0,0.000209,2]
[364219617,1749043848760,-500.0,0.000209,2]
[364219619,1749043848773,-500.0,0.000209,2]
[364219621,1749043848787,-245.0,0.00020905,2]
[364219624,1749043848802,-1000.0,0.00020943,2]
[364219626,1749043848816,-151.0,0.00020972,2]
[364219628,1749043848832,-151.0,0.00020972,2]
[364219631,1749043848846,-151.0,0.00020972,2]
[364219634,1749043848862,-158.261927,0.00020972,2]
[364219636,1749043848878,-158.261927,0.00020972,2]
[364219639,1749043848893,-268.10010166,0.00021,2]
[364219641,1749043848905,-2473.80280598,0.00021,2]
[364219643,1749043848916,-200.53135827,0.00021,2]
[364219645,1749043848929,-500.0,0.0002102,2]
[364219648,1749043848945,-4278.27575309,0.00021038,4]
[364219650,1749043848959,-621.09360266,0.00021065,2]
[364219653,1749043848973,-421.21542315,0.00021065,2]
[364219655,1749043848988,-500.0,0.00021065,2]
[364219658,1749043849002,-500.0,0.00021065,2]
[364219660,1749043849013,-500.0,0.00021065,2]
[364219662,1749043849025,-500.0,0.00021065,2]
[364219664,1749043849037,-500.0,0.00021065,2]
[364219667,1749043849051,-500.0,0.00021065,2]
[364219669,1749043849063,-500.0,0.00021065,2]
[364219671,1749043849076,-500.0,0.00021065,2]
[364219674,1749043849090,-500.0,0.00021065,2]
[364219675,1749043849103,-500.0,0.00021065,2]
[364219676,1749043849115,-500.0,0.00021065,2]
[364219677,1749043849127,-500.0,0.00021065,2]
[364219678,1749043849140,-500.0,0.00021065,2]
[364219679,1749043849153,-500.0,0.00021065,2]
[364219680,1749043849165,-170.70040537,0.00021095,2]
[364219681,1749043849176,-500.0,0.00021095,3]
[364219684,1749043849188,-440.0,0.00021095,2]
[364219686,1749043849201,-1294.34,0.00021095,2]
[364219688,1749043849214,-1679.19,0.00021095,2]
[364219690,1749043849226,-1051.97,0.00021095,2]
[364219693,1749043849239,-578.89,0.00021095,2]
[364219695,1749043849252,-602.97,0.00021095,2]
[364219697,1749043849264,-610.23,0.00021095,2]
[364219700,1749043849277,-2555.1,0.00021095,2]
[364219702,1749043849290,-2149.19,0.00021095,2]
[364219704,1749043849302,-2673.82,0.00021095,2]
[364219706,1749043849316,-507.61,0.00021095,2]
[364219709,1749043849328,-440.0,0.00021095,2]
[364219711,1749043849340,-721.25,0.00021095,2]
[364219713,1749043849353,-4302.01,0.00021095,2]
[364219716,1749043849367,-2742.71,0.00021095,2]
[364219718,1749043849379,-1046.53,0.00021095,2]
[364219720,1749043849392,-1234.55,0.00021095,2]
[364219722,1749043849405,-686.23,0.00021095,2]
[364219725,1749043849421,-834.94,0.00021095,2]
[364219727,1749043849435,-655.42,0.00021095,2]
[364219729,1749043849449,-2049.91,0.00021095,2]
[364219732,1749043849463,-440.0,0.00021095,2]
[364219734,1749043849475,-771.64,0.00021095,2]
[364219736,1749043849491,-2082.9,0.00021095,2]
[364219739,1749043849504,-500.6663336,0.00021106,2]
[364219741,1749043849516,-575.49483425,0.00021125,2]
[364219743,1749043849529,-500.0,0.00021125,2]
[364219746,1749043849542,-500.0,0.00021125,2]
[364219748,1749043849556,-160.3024375,0.00021125,2]
[364219750,1749043849569,-500.0,0.0002116,2]
[364219752,1749043849582,-500.0,0.0002116,2]
[364219755,1749043849595,-500.0,0.0002116,2]
[364219757,1749043849605,-1500.0,0.00021164,2]
[364219759,1749043849615,-207.4,0.00021182,2]
[364219761,1749043849625,-256.12305451,0.00021182,2]
[364219763,1749043849634,-500.0,0.00021182,2]
[364219765,1749043849643,-500.0,0.00021182,2]
[364219767,1749043849653,-1888.0,0.00021182,2]
[364219769,1749043849662,-500.0,0.00021182,2]
[364219788,1749043849833,-500.0,0.00021182,2]
[364219791,1749043849850,-500.0,0.00021182,2]
[364219793,1749043849860,-500.0,0.00021182,2]
[364219795,1749043849869,-5000.0,0.00021182,2]
[364219796,1749043849879,-500.0,0.00021182,2]
[364219798,1749043849889,-500.0,0.00021182,2]
[364219801,1749043849898,-500.0,0.00021182,2]
[364219803,1749043849908,-500.0,0.00021182,2]
[364219805,1749043849918,-500.0,0.00021182,2]
[364219807,1749043849927,-500.0,0.00021182,2]
[364219809,1749043849937,-500.0,0.00021182,2]
[364219811,1749043849946,-500.0,0.00021182,2]
[364219813,1749043849955,-500.0,0.00021182,2]
[364219815,1749043849965,-925.96673653,0.00021237,2]
[364219817,1749043849974,-4278.27575309,0.00021279,5]
[364219819,1749043849984,-440.0,0.00021369,2]
[364219821,1749043849993,-1294.34,0.00021369,2]
[364219823,1749043850004,-1679.19,0.00021369,2]
[364219825,1749043850014,-1051.97,0.00021369,2]
[364219827,1749043850024,-578.89,0.00021369,2]
[364219829,1749043850033,-602.97,0.00021369,2]
[364219830,1749043850043,-610.23,0.00021369,2]
[364219833,1749043850052,-2555.1,0.00021369,2]
[364219834,1749043850062,-2149.19,0.00021369,2]
[364219836,1749043850072,-2673.82,0.00021369,2]
[364219838,1749043850082,-507.61,0.00021369,2]
[364219841,1749043850091,-440.0,0.00021369,2]
[364219843,1749043850100,-721.25,0.00021369,2]
[364219845,1749043850111,-4302.01,0.00021369,2]
[364219846,1749043850121,-2742.71,0.00021369,2]
[364219848,1749043850130,-1046.53,0.00021369,2]
[364219850,1749043850140,-1234.55,0.00021369,2]
[364219853,1749043850150,-686.23,0.00021369,2]
[364219855,1749043850160,-834.94,0.00021369,2]
[364219857,1749043850169,-655.42,0.00021369,2]
[364219859,1749043850179,-2049.91,0.00021369,2]
[364219860,1749043850188,-440.0,0.00021369,2]
[364219862,1749043850197,-771.64,0.00021369,2]
[364219864,1749043850207,-2082.9,0.00021369,2]
[364219866,1749043850217,-151.0,0.000214,4]
[364219868,1749043850227,-1000.0,0.00021435,2]
[364219871,1749043850237,-1000.0,0.00021435,2]
[364219873,1749043850247,-501.11265055,0.00021441,2]
[364219874,1749043850257,-509.59323327,0.00021441,2]
[364219877,1749043850266,-500.0,0.00021441,2]
[364219879,1749043850276,-500.50520965,0.00021441,2]
[364219880,1749043850286,-500.0,0.00021441,2]
[364219882,1749043850295,-500.0,0.00021444,2]
[364219885,1749043850307,-500.0,0.00021444,2]
[364219887,1749043850317,-1000.0,0.00021448,2]
[364219889,1749043850326,-600.0,0.00021448,2]
[364219891,1749043850337,-500.0,0.00021448,2]
[364219893,1749043850347,-500.0,0.00021448,2]
[364219895,1749043850357,-500.0,0.00021448,2]
[364219897,1749043850366,-1000.0,0.00021448,2]
[364219899,1749043850375,-189.0,0.00021454,2]
[364219901,1749043850385,-823.0,0.00021454,2]
[364219903,1749043850394,-800.0,0.00021484,2]
[364219905,1749043850404,-1500.0,0.00021491,2]
[364219907,1749043850414,-4278.27575309,0.00021521,5]
[364219909,1749043850426,-1000.0,0.00021568,2]
[364219911,1749043850436,-1000.0,0.00021613,2]
[364219913,1749043850446,-500.0,0.00021613,2]
[364219915,1749043850456,-500.0,0.00021613,2]
[364219917,1749043850466,-500.0,0.00021613,2]
[364219919,1749043850475,-500.0,0.00021613,2]
[364219921,1749043850485,-1000.0,0.00021613,2]
[364219923,1749043850495,-500.0,0.00021613,2]
[364219925,1749043850504,-500.0,0.00021613,2]
[364219927,1749043850515,-1000.0,0.00021613,2]
[364219929,1749043850524,-500.0,0.00021613,2]
[364219931,1749043850533,-500.0,0.00021613,2]
[364219933,1749043850542,-504.31260326,0.00021613,2]
[364219935,1749043850554,-1000.0,0.00021613,2]
[364219937,1749043850563,-1000.0,0.00021613,2]
[364219939,1749043850573,-151.747389,0.00021642,2]
[364219941,1749043850583,-372319.78341,0.00021642,2]
[364219943,1749043850594,-229.39,0.00021643,4]
[364219945,1749043850604,-440.0,0.00021643,2]
[364219947,1749043850613,-1294.34,0.00021643,2]
[364219949,1749043850623,-1679.19,0.00021643,2]
[364219951,1749043850632,-1051.97,0.00021643,2]
[364219953,1749043850642,-578.89,0.00021643,2]
[364219956,1749043850651,-602.97,0.00021643,2]
[364219957,1749043850660,-610.23,0.00021643,2]
[364219959,1749043850670,-2555.1,0.00021643,2]
[364219961,1749043850680,-2149.19,0.00021643,2]
[364219964,1749043850689,-2673.82,0.00021643,2]
[364219966,1749043850699,-507.61,0.00021643,2]
[364219968,1749043850709,-507.94,0.00021643,2]
[364219969,1749043850718,-721.25,0.00021643,2]
[364219972,1749043850728,-4302.01,0.00021643,2]
[364219974,1749043850737,-2742.71,0.00021643,2]
[364219976,1749043850747,-1046.53,0.00021643,2]
[364219977,1749043850756,-1234.55,0.00021643,2]
[364219979,1749043850766,-686.23,0.00021643,2]
[364219982,1749043850776,-834.94,0.00021643,2]
[364219984,1749043850786,-655.42,0.00021643,2]
[364219986,1749043850795,-2049.91,0.00021643,2]
[364219988,1749043850805,-440.0,0.00021643,2]
[364219990,1749043850814,-771.64,0.00021643,2]
[364219992,1749043850823,-1000.0,0.00021673,2]
[364219994,1749043850832,-1000.0,0.00021673,2]
[364219996,1749043850841,-1000.0,0.00021708,2]
[364219998,1749043850851,-1000.0,0.00021708,2]
[364220000,1749043850860,-1000.0,0.00021708,2]
[364220002,1749043850869,-158.4581234,0.00021726,2]
[364220004,1749043850878,-5000.0,0.0002173,2]
[364220005,1749043850887,-4278.27575309,0.00021762,5]
[364220007,1749043850897,-709.0,0.00021791,2]
[364220008,1749043850907,-2227.0,0.00021791,2]
[364220010,1749043850916,-495.838,0.00021791,2]
[364220012,1749043850925,-202.39606943,0.00021877,2]
[364220014,1749043850934,-53214.35,0.000219,2]
[364220016,1749043850944,-151.0,0.00021917,2]
[364220018,1749043850953,-201.95661036,0.00021917,2]
[364220020,1749043850963,-212.352444,0.00021917,2]
[364220022,1749043850972,-212.352444,0.00021917,2]
[364220024,1749043850981,-151.0,0.00021917,2]
[364220026,1749043850991,-151.0,0.00021917,2]
[364220028,1749043851000,-151.0,0.00021917,2]
[364220030,1749043851009,-158.261927,0.00021917,2]
[364220032,1749043851019,-158.261927,0.00021917,2]
[364220034,1749043851028,-500.0,0.00021917,2]
[364220036,1749043851038,-500.0,0.00021917,2]
[364220038,1749043851047,-500.0,0.00021917,2]
[364220040,1749043851058,-500.0,0.00021917,2]
[364220042,1749043851067,-500.0,0.00021917,2]
[364220044,1749043851077,-644.67946039,0.00021917,2]
[364220046,1749043851086,-151.6191698,0.00021917,2]
[364220048,1749043851097,-1294.34,0.00021917,2]
[364220051,1749043851107,-1679.19,0.00021917,2]
[364220053,1749043851117,-1051.97,0.00021917,2]
[364220054,1749043851127,-578.89,0.00021917,2]
[364220056,1749043851136,-602.97,0.00021917,2]
[364220059,1749043851146,-610.23,0.00021917,2]
[364220060,1749043851156,-2555.1,0.00021917,2]
[364220062,1749043851165,-2149.19,0.00021917,2]
[364220065,1749043851175,-2673.82,0.00021917,2]
[364220066,1749043851184,-507.61,0.00021917,2]
[364220068,1749043851193,-721.25,0.00021917,2]
[364220070,1749043851203,-4302.01,0.00021917,2]
[364220072,1749043851212,-2742.71,0.00021917,2]
[364220074,1749043851222,-1046.53,0.00021917,2]
[364220076,1749043851232,-1234.55,0.00021917,2]
[364220078,1749043851241,-686.23,0.00021917,2]
[364220080,1749043851251,-834.94,0.00021917,2]
[364220082,1749043851261,-655.42,0.00021917,2]
[364220084,1749043851271,-2049.91,0.00021917,2]
[364220086,1749043851280,-440.0,0.00021917,2]
[364220088,1749043851290,-771.64,0.00021917,2]
[364220090,1749043851300,-500.0,0.00021983,2]
[364220092,1749043851312,-1500.0,0.00021983,2]
[364220094,1749043851322,-500.0,0.00021989,2]
[364220096,1749043851332,-1000.0,0.00021989,2]
[364220098,1749043851342,-503.81646108,0.00021992,2]
[364220100,1749043851351,-1000.0,0.00021992,2]
[364220102,1749043851361,-500.0,0.00021996,2]
[364220104,1749043851371,-785.13888864,0.00022,2]
[364220106,1749043851380,-10209.83714791,0.00022,2]
[364220108,1749043851390,-4278.27575309,0.00022003,6]